Cogmind - Beta 16 --- EXPLORER MODE // 2025.12.19 @ 15:11:46 Player: K.K.Y. Result: Destroyed by 2H-C4J(g) with Beamcaster Performance ------------- Evolutions (4) 2000 Regions Visited (10) 2000 Robots Destroyed (195) 975 Value Destroyed (7753) 7753 Prototype IDs (38) 760 Alien Tech Used (0) 0 Bonus (-48) -48 TOTAL SCORE: 13440 Bonus ------- Follower Combat Kills 191 Friendly Fire -239 Cogmind --------- Core Integrity 0/850 Matter 290/300 Energy 28/300 System Corruption 1% Temperature Cool (9) Movement Walking (187) Ox1 Location -6/Lower Caves Parts ------- > --- POWER (2) -------- Cold Fusion Reactor Cold Fusion Reactor > --- PROPULSION (5) --- Flexi-carbon Leg Flexi-carbon Leg Armored Leg Multireflex Exoskeleton > --- UTILITY (7) ------ Advanced Heat Sink High-capacity Storage Unit Improved Light Armor Plating Improved Medium Armor Plating Layered Medium Armor Plating Thermal Defense Suite Hacking Suite > --- WEAPON (2) ------- Arc Projector Proton Cannon > --- INVENTORY (20) --- Reinforced Deuterium Engine Cold Fusion Reactor Machine Analyzer Triangulator Long-range Terrain Scanner Advanced Terrain Scan Processor Experimental Targeting Computer Stasis Canceller Advanced Transmission Jammer Advanced ECM Suite System Shield Authchip [R/NC] Authchip [R/Combat] Component Analysis Suite System Restoration Module Advanced System Restoration Module Heavy Flak Cannon Antimatter Cannon Advanced EMP Blaster Shock Maul Peak State ------------ > --- POWER ------------ F-cell Engine F-cell Engine > --- PROPULSION ------- Flexi-carbon Leg Flexi-carbon Leg Improved VSS Leg Multireflex Exoskeleton > --- UTILITY ---------- Advanced Heat Sink Advanced Heat Sink Advanced Heat Sink High-capacity Storage Unit Experimental Targeting Computer Layered Medium Armor Plating Thermal Defense Suite > --- WEAPON ----------- Force Rifle Force Rifle > --- INVENTORY -------- Light Angular Momentum Engine Light Fission Core Light Fission Core Machine Analyzer Triangulator Advanced Terrain Scan Processor Stasis Canceller Advanced Transmission Jammer System Shield Authchip [R/NC] Authchip [R/Combat] System Restoration Module System Restoration Module Improved System Restoration Module Proton Cannon Cooled Particle Cannon Heavy Flak Cannon Antimatter Cannon Guided EMP Blaster [Rating: 93] Favorites ----------- Power Cold Fusion Reactor Engine Light Ion Engine Power Core Micro Nuclear Core Reactor Cold Fusion Reactor Propulsion Improved Treads Treads Improved Treads Leg Flexi-carbon Leg Flight Unit Biomechanical Wings Utility Hardened Light Armor Plating Device Advanced Heat Sink Storage Large Storage Unit Processor Experimental Targeting Computer Hackware Hacking Suite Protection Hardened Light Armor Plating Weapon Light Cannon Energy Gun Force Rifle Energy Cannon Powered Cannon Ballistic Gun Gauss Rifle Ballistic Cannon Light Cannon Launcher Advanced EMP Blaster Special Weapon Mining Laser Impact Weapon Shock Maul Build | -11 -10 -10 -10 -9 -9 -6 -6 -6 -6 -6 ------- Run | Yrd Mat Min Sub Rec Scr Fac Was Fac Low Low Slots Evolved 9 | . 1 . . . . 8 . . . . Power 1 | . . . . . . 1 . . . . Propulsion 3 | . . . . . . 3 . . . . Utility 5 | . 1 . . . . 4 . . . . Weapon . | . . . . . . . . . . . Parts Attached 144 | 7 11 2 12 . 2 17 6 77 7 3 Power 20 | 1 . 1 1 . . 4 . 13 . . Engine 14 | 1 . 1 1 . . 4 . 7 . . Core 2 | . . . . . . . . 2 . . Reactor 4 | . . . . . . . . 4 . . Propulsion 31 | 2 2 . 3 . 2 5 1 14 1 1 Treads 15 | 2 2 . 3 . 2 5 . 1 . . Leg 15 | . . . . . . . 1 12 1 1 Wheel . | . . . . . . . . . . . Hover . | . . . . . . . . . . . Flight 1 | . . . . . . . . 1 . . Utility 60 | 2 6 1 3 . . 8 4 31 5 . Device 34 | . . . 1 . . 4 3 25 1 . Storage 5 | . 1 1 . . . . . 3 . . Processor 1 | . . . . . . . . 1 . . Hackware 5 | . . . . . . 3 1 . 1 . Protection 15 | 2 5 . 2 . . 1 . 2 3 . Artifact . | . . . . . . . . . . . Weapon 33 | 2 3 . 5 . . . 1 19 1 2 Energy Gun 13 | 1 . . 1 . . . . 10 . 1 Energy Cannon 5 | . . . 1 . . . 1 1 1 1 Ballistic Gun 3 | 1 . . . . . . . 2 . . Ballistic Cannon 7 | . 3 . 2 . . . . 2 . . Launcher 3 | . . . . . . . . 3 . . Special Weapon 1 | . . . 1 . . . . . . . Impact Weapon 1 | . . . . . . . . 1 . . Slashing Weapon . | . . . . . . . . . . . Piercing Weapon . | . . . . . . . . . . . Special Melee Weapon . | . . . . . . . . . . . Unidentified Prototypes 13 | . . . . . . 1 . 12 . . Parts Lost 28 | . 1 . 3 1 . . 10 10 3 . Power 4 | . 1 . 1 1 . . 1 . . . Propulsion 6 | . . . . . . . 3 2 1 . Utility 12 | . . . 1 . . . 3 6 2 . Weapon 6 | . . . 1 . . . 3 2 . . Highest Loss Streak 9 | . 1 . 1 1 . . 9 1 1 . To Critical Strikes 1 | . . . . . . . 1 . . . Average Backups 16 | 1 9 15 14 15 19 19 12 16 19 20 Power . | . . . . . . . . 2 2 2 Propulsion . | . . 2 . . . 1 . . . . Utility 10 | . 6 11 9 9 12 9 7 9 13 14 Weapon 4 | . 1 2 3 6 6 8 5 4 4 4 Tool/Special . | . . . . . . . . . . . Unused Backups 44 | . 2 . . . 4 4 5 13 1 15 Power 5 | . . . . . . . . 4 . 1 Propulsion 3 | . . . . . . 1 1 1 . . Utility 22 | . 2 . . . 2 1 2 3 1 11 Weapon 14 | . . . . . 2 2 2 5 . 3 Tool/Special . | . . . . . . . . . . . Average Slot Usage (%) 87 | . 95 95 93 66 66 75 46 89 90 93 Engine 5 | . 8 7 9 . . 7 5 6 . . Reactor 2 | . . . . . . . . 3 12 12 Treads 14 | . 25 25 24 22 22 25 13 . . . Leg 9 | . . . . . . . . 23 24 25 Device 10 | . . . 2 . . 12 7 27 13 12 Storage 8 | . 5 12 11 11 11 5 2 5 6 6 Hackware 1 | . . . . . . 5 10 . 5 6 Protection 16 | . 30 25 21 22 22 10 2 4 15 18 Energy Gun 4 | . . . 2 . . . . 11 6 6 Energy Cannon 3 | . . . 1 11 11 5 2 . 5 6 Ballistic Cannon 6 | . 23 25 14 . . . . . . . Peak Build Rating 93 | 7 14 14 29 29 31 63 63 93 85 84 Average Rating 46 | 5 10 13 19 28 29 51 34 83 82 84 On Entrance 32 | . 7 13 14 29 29 31 63 15 76 84 Avg Prop Armor Cover (%) 6 | . . . . . . 9 . 6 . . Naked Turns 84 | . . . . . . . 84 . . . Heaviest Build 100 | 13 41 39 43 58 58 86 80 95 100 99 Greatest Support 106 | 40 46 46 46 43 46 106 106 92 92 92 Greatest Overweight (x) 16 | . . . . 1 1 1 16 2 1 1 Average Overweight (x) . | . . . . . 1 . . . . 1 Largest Inventory Capacity 20 | 5 15 20 20 20 20 20 20 20 20 20 Average Capacity 16 | 5 9 15 15 15 20 20 12 17 20 20 Most Carried 20 | 5 15 15 15 19 20 20 20 20 20 20 Average Carried 16 | 1 9 14 14 15 19 19 12 17 19 20 Final Capacity 20 | 5 15 15 15 20 20 20 5 20 20 20 Final Carried 20 | 2 15 15 15 19 20 20 5 20 20 20 Class Distribution -------------------- 83% | Hacker-Mutant 15% | Commander-Mutant Dominant Class ---------------- Hacker-Mutant | -10/Materials Hacker-Mutant | -10/Mines Hacker-Mutant | -10/Subcaves Commander-Mutant | -9/Recycling Commander-Mutant | -9/Scraptown Hacker-Mutant | -6/Factory Hacker-Mutant | -6/Waste Hacker-Mutant | -6/Factory Hacker-Mutant | -6/Lower Caves Hacker-Mutant | -6/Lower Caves Resources | -11 -10 -10 -10 -9 -9 -6 -6 -6 -6 -6 ----------- Run | Yrd Mat Min Sub Rec Scr Fac Was Fac Low Low Matter Collected 3619 | 222 405 149 980 136 40 170 41 1254 179 43 Remotely 44 | . . . . . . . . 44 . . Salvage Created 11014 | 110 516 113 504 338 . 696 . 7531 981 225 Parts 526 | 8 23 5 45 9 . 31 . 357 38 10 Haulers Intercepted 12 | . 2 . . . . 1 . 8 1 . Recyclers Shooed 4 | . . . . . . . . 4 . . Parts Field Recycled . | . . . . . . . . . . . Retrieved Matter . | . . . . . . . . . . . Parts Self-Destructed . | . . . . . . . . . . . Prevented . | . . . . . . . . . . . Parts Restored . | . . . . . . . . . . . Kills | -11 -10 -10 -10 -9 -9 -6 -6 -6 -6 -6 ------- Run | Yrd Mat Min Sub Rec Scr Fac Was Fac Low Low Combat Hostiles Destroyed 139 | . 8 4 23 5 . 8 . 77 11 3 Melee 1 | . . . 1 . . . . . . . Guns 74 | . . . 1 . . . . 72 1 . Cannons 45 | . 8 4 21 2 . 6 . . 3 1 AOE 2 | . . . . . . . . 1 1 . Classes Destroyed 21 | 2 3 1 6 2 . 4 . 3 . . Worker 8 | . . 1 . . . . . 7 . . Builder 4 | . . . . . . 1 . 3 . . Tunneler 3 | 1 . . . . . . . 2 . . Hauler 12 | . 2 . . . . 1 . 8 1 . Recycler 11 | 1 1 . . 2 . 1 . 6 . . Mechanic 1 | . . . . . . . . 1 . . Operator 3 | . . . . . . 1 . 2 . . Turret 2 | . . . 2 . . . . . . . Watcher 10 | . 3 . . . . . . 7 . . Swarmer 8 | . . . 5 1 . . . 2 . . Grunt 66 | . 8 4 4 1 . 4 . 37 6 2 Brawler 3 | . . . . . . . . 2 1 . Duelist 2 | . . . . 1 . . . 1 . . Sentry 13 | . . . 1 1 . 2 . 8 1 . Demolisher 1 | . . . . 1 . . . . . . Hunter 16 | . . . . . . 1 . 13 2 . Programmer 14 | . . . . . . 1 . 13 . . Behemoth 2 | . . . . . . . . 1 1 . Artisan 1 | . . . 1 . . . . . . . Subdweller 13 | . . . 13 . . . . . . . Zionite 2 | . . . 2 . . . . . . . Savage 1 | . . . . . . . . . . 1 Best Kill Streak 7 | 1 5 2 3 2 . 3 . 7 5 2 Combat Bots Only 5 | . 2 2 3 2 . 3 . 5 5 2 Max Kills in Single Turn 2 | 1 2 1 1 1 . 1 . 2 1 1 Gunslinging 1 | . . . . . . . . 1 . . Exploded 1 | . . . . . . . . 1 1 . Melee 1 | . . . 1 . . . . . . . Uniques/NPCs Destroyed . | . . . . . . . . . . . Combat | -11 -10 -10 -10 -9 -9 -6 -6 -6 -6 -6 -------- Run | Yrd Mat Min Sub Rec Scr Fac Was Fac Low Low Hostile Shots Fired 1259 | . 19 12 242 23 . 76 19 721 94 53 Missed 456 | . 8 5 88 2 . 30 1 267 36 19 Hits 803 | . 11 7 154 21 . 46 18 454 58 34 Melee 23 | . . . . 1 . . 18 3 . 1 Projectile 780 | . 11 7 154 20 . 46 . 451 58 33 AOE 1 | . . . . . . . . 1 . . Critical Strikes 28 | . . . . 1 . 2 7 13 1 4 Part Disruptions 2 | . . . . . . 1 . 1 . . Damage Taken 7247 | . 127 53 1200 152 . 334 476 4060 496 349 Core 1051 | . 16 7 155 19 . 40 230 518 30 36 Absorbed by Shields 26 | . . . . 15 . 11 . . . . Ignored by Resistances 5915 | . 78 36 838 118 . 277 273 3483 457 355 Regen/Repaired (Parts) 482 | . . . . . . . . 482 . . Core Remaining (%) 60 | 100 . . . . 21 . . . . . Volleys Fired 670 | 3 30 10 182 16 . 45 15 320 35 14 Largest 2 | 2 2 2 2 1 . 1 1 2 2 2 Hottest 160 | 60 60 60 150 40 . 120 120 160 130 130 Shots Fired 1164 | 6 61 22 303 16 . 45 15 595 72 29 Gun 673 | 6 2 . 39 . . . . 576 36 14 Cannon 437 | . 59 22 229 16 . 45 15 . 36 15 Launcher 19 | . . . . . . . . 19 . . Special 35 | . . . 35 . . . . . . . Kinetic 301 | 3 60 22 208 . . . 1 7 . . Thermal 680 | 3 1 . 56 16 . 45 14 545 . . Explosive . | . . . . . . . . . . . Electromagnetic 183 | . . . 39 . . . . 43 72 29 Robot Hit Streak 50 | 5 14 17 26 28 . 21 6 50 37 13 Robot Miss Streak 3 | . 2 1 3 1 . 2 1 3 1 1 Penetration Max . | . . . . . . . . . . . Secondary Targets 16 | . . . . . . . . 16 . . Max Gunslinging Chain 1 | . . . . . . . . 1 . . Shots Hit Robots 818 | 5 38 18 104 15 . 39 10 500 63 26 Core Hits 310 | 3 17 7 37 3 . 10 1 205 21 6 Critical Kills 16 | . . . 2 4 . 2 . 8 . . Critical Parts Destroyed 26 | . . . 1 . . . . 25 . . Critical Strikes 57 | . 3 . 7 4 . 2 . 40 1 . Burn 6 | . . . . . . . . 6 . . Meltdown 7 | . . . 1 4 . 2 . . . . Destroy 37 | . . . 4 . . . . 33 . . Blast 5 | . 3 . 2 . . . . . . . Corrupt 2 | . . . . . . . . 1 1 . Melee Attacks . | . . . . . . . . . . . Impact . | . . . . . . . . . . . Slashing . | . . . . . . . . . . . Piercing . | . . . . . . . . . . . Sneak Attacks . | . . . . . . . . . . . Combat Hostiles . | . . . . . . . . . . . Follow-up Attacks . | . . . . . . . . . . . Damage Inflicted 21076 | 48 673 309 2304 777 . 2150 734 11893 1603 585 Guns 12271 | 48 . . 92 . . . . 11384 576 171 Cannons 8018 | . 673 306 2103 768 . 2150 734 . 870 414 Explosions 631 | . . . . . . . . 474 157 . Melee . | . . . . . . . . . . . Ramming 108 | . . 3 61 9 . . . 35 . . Kinetic 3006 | 14 673 306 1860 . . . 29 124 . . Thermal 15174 | 34 . . 291 768 . 2150 705 11069 157 . Explosive . | . . . . . . . . . . . Electromagnetic 2788 | . . . 92 . . . . 665 1446 585 Impact . | . . . . . . . . . . . Slashing . | . . . . . . . . . . . Piercing . | . . . . . . . . . . . Highest Corruption 8 | . 4 4 4 . . . . 8 1 1 Average Corruption 3 | . 2 4 3 . . . . 5 1 1 Corruption Purged 16 | . . . 4 . . . . 12 . . Corruption Blocked . | . . . . . . . . . . . Effects 269 | . 15 22 75 . . . . 129 20 8 Message Errors 77 | . 3 6 24 . . . . 36 6 2 Matter Fused 56 | . 2 7 16 . . . . 25 3 3 Heat Flow Errors 32 | . 3 1 8 . . . . 18 1 1 Energy Discharges 27 | . 2 3 9 . . . . 9 3 1 Parts Rejected 1 | . . . . . . . . 1 . . Parts Fused 3 | . . . 1 . . . . 2 . . Data Loss (minor) 32 | . 4 1 8 . . . . 17 2 . Data Loss (major) 7 | . . 1 1 . . . . 4 1 . Misfires 18 | . 1 2 4 . . . . 8 2 1 Alerts 8 | . . 1 1 . . . . 4 2 . Weapon Failures 8 | . . . 3 . . . . 5 . . Overload Shots 9 | . . . 1 . . 3 5 . . . Overflow Damage 266 | . . 7 55 33 . 144 . 16 11 . Projectiles 250 | . . 7 55 33 . 144 . . 11 . Explosions 16 | . . . . . . . . 16 . . Melee . | . . . . . . . . . . . Knockbacks 26 | . 7 3 16 . . . . . . . Impact . | . . . . . . . . . . . Kinetic 25 | . 6 3 16 . . . . . . . Secondary 1 | . 1 . . . . . . . . . Self-Inflicted Damage 31 | . . . . . . . . 31 . . Shots 4 | . . . . . . . . 4 . . Rammed 17 | . . 1 15 1 . . . . . . Targets Rammed 21 | . . 1 16 1 . . . 3 . . Kicked 3 | . . . . . . . . 3 . . Crushed 1 | . . . 1 . . . . . . . Highest Temperature 360 | 50 280 138 265 33 . 233 236 360 220 102 Average Temperature 64 | 24 82 61 74 16 . 37 98 60 40 22 Received Heat Transfer 3635 | . 81 48 696 62 . 204 . 2049 225 270 Effects 2 | . . . . . . . . 2 . . Interference 2 | . . . . . . . . 2 . . Siege Activations . | . . . . . . . . . . . Martial Activations . | . . . . . . . . . . . Shielding Activations . | . . . . . . . . . . . Robots Disrupted 3 | . . . . . . . . 1 . 2 Combat Hostiles 3 | . . . . . . . . 1 . 2 Robots Corrupted 11 | . . . . . . . . 2 7 2 Combat Hostiles 10 | . . . . . . . . 2 6 2 Parts Fried 22 | . . . . . . . . 6 14 2 Impact Corruptions . | . . . . . . . . . . . Robots Melted 9 | . . . 1 4 . 2 . 2 . . Combat Hostiles 7 | . . . . 3 . 2 . 2 . . Parts Melted 64 | . . . 1 5 . 2 . 56 . . Heat Transferred 17863 | 75 . . 100 . . . . 17538 150 . Parts Sabotaged . | . . . . . . . . . . . Parts Stolen . | . . . . . . . . . . . Parts Stripped . | . . . . . . . . . . . Power Chain Reactions 1 | . . . . . . . . . 1 . Alert | -11 -10 -10 -10 -9 -9 -6 -6 -6 -6 -6 ------- Run | Yrd Mat Min Sub Rec Scr Fac Was Fac Low Low Maximum Alert Level 1 | . . . . . . . . 1 . . Low Security (%) 98 | 100 100 100 . 100 . 100 100 97 . . Level 1 1 | . . . . . . . . 2 . . Level 2 . | . . . . . . . . . . . Level 3 . | . . . . . . . . . . . Level 4 . | . . . . . . . . . . . Level 5 . | . . . . . . . . . . . High Security . | . . . . . . . . . . . Max Security . | . . . . . . . . . . . Peak Influence 251 | 5 68 50 . 46 . 59 1 251 . . Initial . | . . . . . . . . . . . Average 15 | 1 5 3 . 2 . 9 . 24 . . Influence Increases 4189 | 10 291 105 410 241 . 340 5 2482 255 50 Destroy 0b10 Robot/C 2640 | . 160 80 240 180 . 180 . 1540 220 40 Destroy 0b10 Robot/NC 265 | 10 30 5 . 15 . 20 . 180 5 . Destroy Leader 672 | . 50 20 20 . . 52 . 490 30 10 Allied During Kill 25 | . . . . 22 . 3 . . . . Successful Hack 180 | . . . . 15 . 27 . 138 . . Disable Machine 72 | . 4 . . . . 12 . 56 . . Destroy Structure 35 | . 2 . . 9 . 16 5 3 . . Lose Combat Pursuer 300 | . 45 . 150 . . 30 . 75 . . Influence Decreases 4189 | 10 291 105 410 241 . 338 7 2482 255 50 Entered New Map 2 | . . . . . . . 2 . . . Time Decay 3998 | 10 291 105 390 221 . 294 4 2398 235 50 Lost Part 125 | . . . 20 . . . 1 84 20 . Lost Ally 64 | . . . . 20 . 44 . . . . Squads Dispatched 41 | . 1 . . . . 4 . 36 . . Investigation 14 | . 1 . . . . . . 13 . . Extermination 13 | . . . . . . 1 . 12 . . Reinforcement 13 | . . . . . . 3 . 10 . . Assault . | . . . . . . . . . . . Garrison 1 | . . . . . . . . 1 . . Intercept . | . . . . . . . . . . . Searches Triggered . | . . . . . . . . . . . Construction Impeded 1 | . . . . . . . . 1 . . Haulers Reinforced 6 | . . . . . . 1 . 5 . . Active Scanning Responses . | . . . . . . . . . . . Cargo Convoy Interrupts . | . . . . . . . . . . . Stealth | -11 -10 -10 -10 -9 -9 -6 -6 -6 -6 -6 --------- Run | Yrd Mat Min Sub Rec Scr Fac Was Fac Low Low Distress Signals 6 | . 1 . . . . . . 5 . . Communications Jammed . | . . . . . . . . . . . Distress Signals . | . . . . . . . . . . . Times Spotted 207 | . 16 4 35 9 . 15 8 100 11 9 Peak Tracking Total 6 | . 3 2 6 2 . 4 6 5 5 6 Tactical Retreats 13 | . 3 . 3 . . 1 1 5 . . Traps | -11 -10 -10 -10 -9 -9 -6 -6 -6 -6 -6 ------- Run | Yrd Mat Min Sub Rec Scr Fac Was Fac Low Low Traps Triggered 19 | . 6 . . . . 1 . 12 . . Indirectly . | . . . . . . . . . . . Trap Hack Attempts . | . . . . . . . . . . . Triggered . | . . . . . . . . . . . Disarmed 7 | . 4 . . . . 3 . . . . Reprogrammed . | . . . . . . . . . . . Reused . | . . . . . . . . . . . Traps Extracted . | . . . . . . . . . . . Installed . | . . . . . . . . . . . Triggered . | . . . . . . . . . . . Machines | -11 -10 -10 -10 -9 -9 -6 -6 -6 -6 -6 ---------- Run | Yrd Mat Min Sub Rec Scr Fac Was Fac Low Low Machines Disabled 22 | . 1 . 4 . . 3 . 14 . . Max in Single Turn 2 | . 1 . 2 . . 1 . 1 . . Garrison Access 3 | . . . . . . . . 3 . . Machines Repaired . | . . . . . . . . . . . Machines Dismantled . | . . . . . . . . . . . Machines Sabotaged . | . . . . . . . . . . . Overloaded Fab Kills . | . . . . . . . . . . . Hacking | -11 -10 -10 -10 -9 -9 -6 -6 -6 -6 -6 --------- Run | Yrd Mat Min Sub Rec Scr Fac Was Fac Low Low Machines Accessed 49 | . 7 . 2 10 . 4 . 26 . . Terminals 25 | . 5 . . 6 . 3 . 11 . . Fabricators . | . . . . . . . . . . . Repair Stations 4 | . . . . . . . . 4 . . Recycling Units 11 | . 2 . . 4 . . . 5 . . Scanalyzers 4 | . . . . . . 1 . 3 . . Garrison Access 3 | . . . . . . . . 3 . . Total Hacks 145 | . 11 . 6 33 . 16 . 79 . . Successful 96 | . 8 . 6 20 . 9 . 53 . . Failed 49 | . 3 . . 13 . 7 . 26 . . Catastrophic . | . . . . . . . . . . . Database Lockouts . | . . . . . . . . . . . Manual 56 | . 6 . . 19 . 4 . 27 . . Terminals 74 | . 8 . . 22 . 11 . 33 . . Fabricators . | . . . . . . . . . . . Repair Stations 13 | . . . . . . . . 13 . . Recycling Units 26 | . 3 . . 11 . . . 12 . . Scanalyzers 19 | . . . . . . 5 . 14 . . Garrison Access 7 | . . . . . . . . 7 . . Terminal Hacks 25 | . 1 . 6 8 . 4 . 6 . . Record 5 | . . . 5 . . . . . . . Part Schematic 10 | . . . . 4 . 3 . 3 . . Prototype ID Bank 7 | . . . . 4 . . . 3 . . Disarm Traps 2 | . 1 . . . . 1 . . . . Proto ID Catalog 1 | . . . 1 . . . . . . . Fabricator Hacks . | . . . . . . . . . . . Repair Station Hacks 12 | . . . . . . . . 12 . . Scan Component 7 | . . . . . . . . 7 . . Repair 5 | . . . . . . . . 5 . . Recycling Unit Hacks 11 | . 2 . . 4 . . . 5 . . Retrieve Components 11 | . 2 . . 4 . . . 5 . . Scanalyzer 13 | . . . . . . 2 . 11 . . Insert Component 7 | . . . . . . 1 . 6 . . Analyze 6 | . . . . . . 1 . 5 . . Garrison Access Hacks 3 | . . . . . . . . 3 . . Seal Access 3 | . . . . . . . . 3 . . Unauthorized Hacks 32 | . 5 . . 8 . 3 . 16 . . Terminals 24 | . 5 . . 5 . 3 . 11 . . Assimilate 3 | . . . . . . . . 3 . . Botnet 21 | . 5 . . 5 . 3 . 8 . . Fabricators . | . . . . . . . . . . . Repair Stations . | . . . . . . . . . . . Recycling Units 8 | . . . . 3 . . . 5 . . Reject 8 | . . . . 3 . . . 5 . . Scanalyzers . | . . . . . . . . . . . Garrison Access . | . . . . . . . . . . . Data Cores Recovered 1 | . . . . . . 1 . . . . Used . | . . . . . . . . . . . Hacking Detections 36 | . 5 . . 5 . 4 . 22 . . Full Trace Events 17 | . 1 . . 5 . . . 11 . . Feedback Events . | . . . . . . . . . . . Feedback Blocked . | . . . . . . . . . . . Robot Schematics Acquired . | . . . . . . . . . . . Robots Built . | . . . . . . . . . . . Authchips . | . . . . . . . . . . . Time . | . . . . . . . . . . . Total Robot Build Rating . | . . . . . . . . . . . Part Schematics Acquired 15 | . . . . 4 . 4 . 7 . . Parts Built . | . . . . . . . . . . . Authchips . | . . . . . . . . . . . Time . | . . . . . . . . . . . Total Part Build Rating . | . . . . . . . . . . . Part Studies Acquired . | . . . . . . . . . . . Parts Repaired 5 | . . . . . . . . 5 . . Time 306 | . . . . . . . . 306 . . Parts Recycled . | . . . . . . . . . . . Recycled Matter . | . . . . . . . . . . . Retrieved Matter . | . . . . . . . . . . . Retrieved Components 45 | . 15 . . 10 . . . 20 . . Parts Scanalyzed 5 | . . . . . . 1 . 4 . . Part Schematics Acquired 5 | . . . . . . 1 . 4 . . Parts Damaged 2 | . . . . . . . . 2 . . Bothacking | -11 -10 -10 -10 -9 -9 -6 -6 -6 -6 -6 ------------ Run | Yrd Mat Min Sub Rec Scr Fac Was Fac Low Low Used RIF Installer . | . . . . . . . . . . . Robots Hacked . | . . . . . . . . . . . Non-combat . | . . . . . . . . . . . Combat . | . . . . . . . . . . . Robot Hacks Applied . | . . . . . . . . . . . Relay Couplers Released . | . . . . . . . . . . . Fabnet Peak Effective % . | . . . . . . . . . . . Robots Rewired 27 | . . . . 26 . . . . . 1 Allies Hacked . | . . . . . . . . . . . Hacks Repelled . | . . . . . . . . . . . Allies | -11 -10 -10 -10 -9 -9 -6 -6 -6 -6 -6 -------- Run | Yrd Mat Min Sub Rec Scr Fac Was Fac Low Low Total Allies 27 | . . . . 26 . . . . . 1 Largest Group 25 | . . . . 25 24 23 . . . 1 Highest-Rated Group 384 | . . . . 384 350 323 . . . 36 Highest-Rated Ally 36 | . . . . 34 34 34 . . . 36 Total Orders . | . . . . . . . . . . . Ally Attacks 44 | . . . . 20 . 23 . . . 1 Total Damage 1098 | . . . . 267 . 791 . . . 40 Kills 10 | . . . . 5 . 5 . . . . Allies Corrupted . | . . . . . . . . . . . Allies Melted . | . . . . . . . . . . . Intel | -11 -10 -10 -10 -9 -9 -6 -6 -6 -6 -6 ------- Run | Yrd Mat Min Sub Rec Scr Fac Was Fac Low Low Active Infowar (turns) 2370 | . . . . . . 483 161 1726 . . Sensors 1383 | . . . . . . 481 158 744 . . IFF 412 | . . . . . . 401 11 . . . Structural 1680 | . . . . . . . 6 1674 . . Triangulation 796 | . . . . . . . . 796 . . Robot Analysis Total . | . . . . . . . . . . . Derelict Logs Recovered 4 | . . 1 1 . . . . . 1 1 Drone Launches . | . . . . . . . . . . . Drone Recoveries . | . . . . . . . . . . . Exploration | -11 -10 -10 -10 -9 -9 -6 -6 -6 -6 -6 ------------- Run | Yrd Mat Min Sub Rec Scr Fac Was Fac Low Low Turns Passed 27633 | 84 1379 929 8918 2154 1966 723 309 7312 2443 1416 Spaces Moved 14072 | 54 762 558 4455 1096 764 312 306 3755 1280 730 Core 339 | 22 . . . . . . 252 65 . . Treads 8033 | 32 762 558 4455 1096 764 312 54 . . . Legs 5700 | . . . . . . . . 3690 1280 730 Wheels . | . . . . . . . . . . . Hover . | . . . . . . . . . . . Flight . | . . . . . . . . . . . Fastest Speed 50 | 50 160 160 160 160 240 162 50 50 117 187 Average Speed 163 | 115 160 160 160 166 245 170 74 149 173 187 Slowest Speed 850 | 160 160 160 160 250 250 243 850 250 187 187 Overloaded Moves . | . . . . . . . . . . . Propulsion Burnouts . | . . . . . . . . . . . Robots Hopped . | . . . . . . . . . . . Potential Cave-ins . | . . . . . . . . . . . Cave-ins Triggered . | . . . . . . . . . . . Exploration Rate (%) 72 | 4 96 99 88 99 54 9 100 78 98 73 Regions Visited 10 Branch Regions 6 Pre-discovered Areas 4 | . . 1 2 . 1 . . . . . Known Exits Taken 8 | 1 1 1 1 1 1 . . 1 1 . Unknown Exits Taken . | . . . . . . . . . . . Scrap Searched 17 | . . 1 5 . 5 . . . 3 3 Spaces Dug 14 | . . . 10 . . . 4 . . . Terrain Destroyed 30 | . . . 12 1 . 5 5 . 7 . Melee . | . . . . . . . . . . . Projectile 23 | . . . 12 1 . 5 5 . . . AOE 7 | . . . . . . . . . 7 . Terrain Rammed . | . . . . . . . . . . . Walls Destroyed . | . . . . . . . . . . . Machines Disabled . | . . . . . . . . . . . Actions | -11 -10 -10 -10 -9 -9 -6 -6 -6 -6 -6 --------- Run | Yrd Mat Min Sub Rec Scr Fac Was Fac Low Low Total 17557 | 70 872 574 5867 1408 861 472 369 4881 1426 757 Wait 2189 | . 35 . 1182 147 80 71 39 536 97 2 Move 14063 | 53 761 557 4454 1095 763 312 305 3754 1279 730 Hop . | . . . . . . . . . . . Pick Up 127 | 7 20 1 8 4 7 13 . 64 3 . Fast Attach 60 | 2 . 1 3 . . 5 10 34 5 . Attach 46 | 5 3 . 2 . . 8 . 27 1 . Detach 12 | . 2 . . . . 1 . 9 . . Swap 72 | . 8 2 10 1 3 4 . 40 1 3 Drop 131 | . 13 2 10 . 8 12 . 79 4 3 Fire 670 | 3 30 10 182 16 . 45 15 320 35 14 Melee . | . . . . . . . . . . . Ram . | . . . . . . . . . . . Kick 3 | . . . . . . . . 3 . . Crush 18 | . . 1 16 1 . . . . . . Escape Stasis 15 | . . . . . . . . 15 . . Rewire 150 | . . . . 144 . 1 . . . 5 Trap . | . . . . . . . . . . . Miscellaneous 1 | . . . . . . . . . 1 . Route ------- -11/Scrapyard -10/Materials (discovered 3 exits: *Mat x2 / *Min) -10/Mines (discovered 3 exits: *Mat x2 / *Sub) -10/Subcaves (discovered 3 exits: *Mat x2 / *Rec) -9/Recycling (discovered 2 exits: *Fac / *Scr) -9/Scraptown -6/Factory -6/Waste -6/Factory (discovered 5 exits: *Fac x3 / *Low x2) -6/Lower Caves -6/Lower Caves (discovered 1 exit: *Fac) History --------- Turn | Location | Event 27 | -11/Scrapyard | Identified exit to Materials 27 | -11/Scrapyard | Discovered exit to Materials (range 15) 85 | -11/Scrapyard | Entered Materials 85 | -10/Materials | Evolved 1 slot: Utility x1 191 | -10/Materials | Identified exit to Mines 191 | -10/Materials | Discovered exit to Mines (range 14) 305 | -10/Materials | Build established: Hacker-Mutant 873 | -10/Materials | Identified exit to Materials 873 | -10/Materials | Discovered exit to Materials (range 5) 1193 | -10/Materials | Discovered exit to Materials (range 10) 1464 | -10/Materials | Entered Mines 1524 | -10/Mines | Found a hidden stash of uninstalled traps 1781 | -10/Mines | Discovered exit to Materials (range 15) 1807 | -10/Mines | Learned location of Zion (-7) 1987 | -10/Mines | Identified exit to Subcaves 1987 | -10/Mines | Discovered exit to Subcaves (range 10) 2083 | -10/Mines | Discovered exit to Materials (range 7) 2393 | -10/Mines | Entered Subcaves 3273 | -10/Subcaves | Visited Clippyterm 3277 | -10/Subcaves | Identified exit to Recycling 3277 | -10/Subcaves | Learned Research machine intel 3571 | -10/Subcaves | A swath of the cavern ceiling suddenly collapsed 4609 | -10/Subcaves | A swath of the cavern ceiling suddenly collapsed 4653 | -10/Subcaves | Shifting Twisted Machinery released Riot Gun 4655 | -10/Subcaves | Shifting Twisted Machinery released Sub. Laser 4747 | -10/Subcaves | Identified exit to Materials 4747 | -10/Subcaves | Discovered exit to Materials (range 11) 4753 | -10/Subcaves | Shifting Twisted Machinery released Sub. Laser 4761 | -10/Subcaves | Shifting Twisted Machinery released Sub. Shrapnel Launcher 5043 | -10/Subcaves | Visited 4L-MR0's lab 6018 | -10/Subcaves | Found Powered Cannon 6456 | -10/Subcaves | Core integrity fell below 50% 6710 | -10/Subcaves | Discovered exit to Materials (range 14) 6718 | -10/Subcaves | Met a Zionite searching for "candidates" 6729 | -10/Subcaves | Shifting Twisted Machinery released Mak. Thermal Plating 9810 | -10/Subcaves | Attached Powered Cannon, gained temporary slot: Power 9861 | -10/Subcaves | Ambushed by Subdweller buried in earth 11311 | -10/Subcaves | Entered Recycling 11711 | -9/Recycling | Build established: Commander-Mutant 12025 | -9/Recycling | Identified exit to Factory 12025 | -9/Recycling | Discovered exit to Factory (range 15) 13290 | -9/Recycling | Scanned before Scraplab entrance 13325 | -9/Recycling | Entered Scraplab 13348 | -9/Recycling | Identified exit to Scraptown 13348 | -9/Recycling | Discovered exit to Scraptown (range 3) 13465 | -9/Recycling | Entered Scraptown 13465 | -9/Scraptown | Accompanied by 24 allies 13633 | -9/Scraptown | Heard Great Nut preacher, LISTEN AND RECITE! 13648 | -9/Scraptown | Received an X-ray algorithm 13665 | -9/Scraptown | Learned location of Extension (-6) 14144 | -9/Scraptown | Visited The Evicted 14169 | -9/Scraptown | Visited TADAMA 14202 | -9/Scraptown | Visited Spacefarers 14237 | -9/Scraptown | Visited Comm Corps 14332 | -9/Scraptown | Visited Cyclists 14364 | -9/Scraptown | Visited Science Testing Area 14379 | -9/Scraptown | Visited Fellowship of the Rings 14447 | -9/Scraptown | Identified exit to Factory 14447 | -9/Scraptown | Discovered exit to Factory (range 13) 15431 | -9/Scraptown | Entered Factory 15431 | -6/Factory | Accompanied by 23 allies 15431 | -6/Factory | Evolved 8 slots: Power x1, Propulsion x3, Utility x4 15466 | -6/Factory | Lost 3 allies 15682 | -6/Factory | Lost 18 allies 15939 | -6/Factory | Build established: Hacker-Mutant 16154 | -6/Factory | Sucked down chute 16154 | -6/Factory | Entered Waste 16169 | -6/Waste | Spotted C-40 Crusher 16195 | -6/Waste | Spotted C-40 Crusher 16259 | -6/Waste | Spotted C-40 Crusher 16283 | -6/Waste | Crushed by Compactor (1 part destroyed, 1 dropped) 16286 | -6/Waste | Crushed by Compactor (1 part destroyed, 1 dropped) 16289 | -6/Waste | Crushed by Compactor (0 parts destroyed, 1 dropped) 16292 | -6/Waste | Crushed by Compactor (1 part destroyed, 1 dropped) 16298 | -6/Waste | Crushed by Compactor (0 parts destroyed, 1 dropped) 16301 | -6/Waste | Crushed by Compactor (1 part destroyed) 16304 | -6/Waste | Crushed by Compactor (0 parts destroyed, 1 dropped) 16307 | -6/Waste | Crushed by Compactor (1 part destroyed) 16313 | -6/Waste | Crushed by Compactor (0 parts destroyed, 1 dropped) 16322 | -6/Waste | Spotted C-40 Crusher 16325 | -6/Waste | Crushed by Compactor (1 part destroyed, 1 dropped) 16328 | -6/Waste | Crushed by Compactor (1 part destroyed, 1 dropped) 16331 | -6/Waste | Crushed by Compactor (1 part destroyed, 1 dropped) 16339 | -6/Waste | Spotted C-40 Crusher 16362 | -6/Waste | Lost 9 parts (1p2n3u3w) 16367 | -6/Waste | Identified exit to Factory 16367 | -6/Waste | Discovered exit to Factory (range 13) 16367 | -6/Waste | Spotted C-40 Crusher 16450 | -6/Waste | Crushed by Compactor (1 part destroyed, 2 dropped) 16463 | -6/Waste | Entered Factory 16560 | -6/Factory | Identified exit to Lower Caves 16560 | -6/Factory | Discovered exit to Lower Caves (range 16) 17224 | -6/Factory | Garrison activated, responded to threat 17637 | -6/Factory | Found Prototype Processor 17637 | -6/Factory | Identified Exp. Targeting Computer 17788 | -6/Factory | Core integrity fell below 50% 18304 | -6/Factory | Build established: Scavenger-Mutant 18697 | -6/Factory | Build established: Hacker-Mutant 19548 | -6/Factory | Repaired Multireflex Exoskeleton 20048 | -6/Factory | Spotted B-75 Beast 20160 | -6/Factory | Discovered exit to Lower Caves (range 15) 20264 | -6/Factory | Repaired Broken Imp. System Restoration Module 20380 | -6/Factory | Identified exit to Factory 20380 | -6/Factory | Discovered exit to Factory (range 14) 20898 | -6/Factory | Repaired Broken Adv. Transmission Jammer 20979 | -6/Factory | Repaired Thermal Defense Suite 21311 | -6/Factory | Discovered exit to Factory (range 8) 21373 | -6/Factory | Repaired Lyr. Medium Armor Plating 21970 | -6/Factory | Found Exp. Targeting Computer 22147 | -6/Factory | Core integrity fell below 20% 22394 | -6/Factory | Discovered exit to Factory (range 15) 23605 | -6/Factory | Destroyed B-75 Beast 23775 | -6/Factory | Entered Lower Caves 23973 | -6/Lower Caves | Learned Factory emergency access door positions 24090 | -6/Lower Caves | Attracted the attention of an 0b10 checkpoint 24151 | -6/Lower Caves | Spotted B-75 Beast 24257 | -6/Lower Caves | Destroyed B-75 Beast 24621 | -6/Lower Caves | Identified exit to Lower Caves 24621 | -6/Lower Caves | Discovered exit to Lower Caves (range 8) 25042 | -6/Lower Caves | Activated DRS Beacon 25636 | -6/Lower Caves | Encountered a Warlord checkpoint 26218 | -6/Lower Caves | Entered another Lower Caves area 26265 | -6/Lower Caves | Discovered exit to Factory (range 5) 26377 | -6/Lower Caves | Learned Factory stockpile data 26675 | -6/Lower Caves | Entered a destroyed Warlord outpost 27559 | -6/Lower Caves | Found DCF Scrap (13 items) 27625 | -6/Lower Caves | Attacked by a faux Warlord 27634 | -6/Lower Caves | Destroyed by 2H-C4J(g) with Beamcaster Last Messages --------------- 27559_ Found Unknown Processor. 27559_ Found Slug Cannon. 27559_ Found Unknown Special Weapon. 27559_ Found Flamer. 27559_ Found 183 Matter. A note is attached: "With love, from the DCF." 27582_ Dropped Flexi-carbon Leg. 27608_ Slug penetrates 2H-C4J(g). 27609_ Slayer 5a destroyed. 27611_ Critical hit (Burn: +37). 27619_ IM-RDV(b) system terminally corrupted. 27619_ Imp. Deuterium Engine fried. 27624_ JH-S99(M): "I've never seen anything like that down here. It must be an Unaware spy!" 27625_ JH-S99(M): "You are tresspassing on Warlord territory, MY territory! Guards, destroy it!" 27625_ Critical hit (Burn: +37). 27629_ C8-DJF(g) shuts down. 27630_ Critical hit (Burn: +37). Map ----- +----------------------------------------------------+ | ?????????????????????????????????????????????????? | | ?????????????????????????????????????????????????? | | ?????????????????????????????????????????????????? | | ?????????????????????????????????????????????????? | | ?????????????????????????????????????????????????? | | ?????????????????????????????????????????????????? | | ?????????????????????????????????????????????????? | | ??????????????????##########?????????????????????? | | ??????????????????# ?????????????????####?? | | ??????????????????# #???????????????## ##? | | ??????????????????# """ """#???????????????# #? | | ??????????????????# """ """#??????????????? ! #? | | ??????????????????#*""" """#??????????????? #? | | ??????????????????#%*" " #???????????????# #? | | ??????????????????#||""""" #?????????????### # ## | | ??????????????????#]!""""" #???#####?????# /# | | ??????????????????#!!!" ##### ####### [ | | ??????????????????#=== | | ??????????????????## ##### ### [%## | | ???????????????????# ##???# #?# ###= | | ???????????????????## * #?##### #?# | | ????????????????????####%[## ### ####?# ### | | ???????????????????????#= #?#####????# #?### | | ??????????????????????##! #####????? #???# | | ?????????? ##/%= #????# #??## | | ?????????? =@ #? ####### | | ?????????? ???## | | ??????????? ### ##### gM #####???# | | ???????????????# ?????###gg #???????# | | ??????????????# ?????????# g #???????# | | ????????????????????????? ??????## | | ????????????????????????? ??????# | | ????????????????????????? ???????# | | ????????????????????????? ???????# | | ????????????????????????? ????????## | | ????????????????????????? ?????????## | | ????????????????????????? #### ####???????????## | | ?????????????????????????##????###???????????????# | | ?????????????????????????????????????????????????# | | ?????????????????????????????????????????????????? | | ?????????????????????????????????????????????????? | | ?????????????????????????????????????????????????? | | ?????????????????????????????????????????????????? | | ?????????????????????????????????????????????????? | | ?????????????????????????????????????????????????# | | ?????????????????????????????????????????????????# | | ?????????????????????????????????????????????????? | | ?????????????????????????????????????????????????? | | ?????????????????????????????????????????????????? | | ?????????????????????????????????????????????????? | +----------------------------------------------------+ Best States ------------- Heat Dissipation 137 Energy Generation 33 Energy Capacity 900 Matter Stores 300 Matter Capacity 300 Sight Range 16 Robot Scan Range 16 Terrain Scan Density 10 Armor Coverage 600 Resistance: KI 35 Resistance: TH 55 Resistance: EX 35 Resistance: EM 35 Resistance: I 35 Resistance: S 35 Resistance: P 35 Evasion (%) 55 Targeting Accuracy 12 Recoil Reduction 5 Particle Charging 20 Offensive Hacking 30 Defensive Hacking 20 Authchip Count 4 Item Schematics ----------------- Proton Missile Launcher | -9/Recycling | Hacked Arm. Wheel | -9/Recycling | Hacked Adv. ECM Suite | -9/Recycling | Hacked Adv. Assault Cannon | -9/Recycling | Hacked Imp. Trap Scanner | -6/Factory | Hacked Hardcell Cannon | -6/Factory | Hacked Imp. Gyrokinetic Inverter | -6/Factory | Hacked IFF Parser | -6/Factory | Scanalyzed Adv. Concussive RPG | -6/Factory | Hacked Adv. Transmission Jammer | -6/Factory | Scanalyzed Multireflex Exoskeleton | -6/Factory | Scanalyzed Hvy. Treads | -6/Factory | Hacked Imp. System Restoration Module | -6/Factory | Scanalyzed Adv. Terrain Scanner | -6/Factory | Scanalyzed Drone Bay | -6/Factory | Hacked Robot Schematics ------------------ None Fabricated ------------ Nothing Repaired ---------- Multireflex Exoskeleton | 4% | -6/Factory Imp. System Restoration Module | 99% | -6/Factory | Broken Adv. Transmission Jammer | 3% | -6/Factory | Broken Thermal Defense Suite | 33% | -6/Factory Lyr. Medium Armor Plating | 69% | -6/Factory Studied --------- None Alien Tech Used ----------------- None Achievements -------------- None Challenges ------------ None Game ------ Seed LightpackMetaNeutralizer Manual? 0 Play Time 01:58:09 Cumulative 214.7 hours Start 2025.12.19 @ 13:10:52 End 2025.12.19 @ 15:11:46 Sessions 1 Manual Loads 0 Difficulty Explorer Special Mode None Game No. 324 Rogue 0 Adventurer 0 Explorer 324 Win Type - Total 0 Types 0/0/0/0/0/0/0/0/0/0 Lore% 71 Gallery% 68 Achievement% 53 Wizard Run 0 Options --------- Layout 1 ASCII 0 Keyboard 0 Movement Mouse Keybinds 0 Fullscreen 1 Font 24/Smallcaps Map View 50x35 Zoom Use 0% Tactical HUD 1 Map Filters NONE Filters NONE Steam 1 RUN: b0478f57-e556-45ba-a898-afd2293132be